[Event "Titled Tuesday Blitz August 1 Late 2023"]
[White "Bauman_Guy"]
[Black "Wu, Rochelle"]
[BlackFideId "30908132"]
[WhiteElo "2807"]
[BlackElo "2629"]
[Result "1-0"]
[Round "8"]
[TimeControl "180+1"]
[Date "2023.08.01"]
[WhiteClock "0:02:07"]
[BlackClock "0:00:57"]
[Board "23"]

1. e4 {[%clk 0:03:00]}  c5 {[%clk 0:02:59]} 2. Nf3 {[%clk 0:03:01]}  d6 {[%clk 0:02:59]} 3. d4 {[%clk 0:03:01]}  cxd4 {[%clk 0:03:00]} 4. Nxd4 {[%clk 0:03:02]}  Nf6 {[%clk 0:03:00]} 5. Nc3 {[%clk 0:03:03]}  Nc6 {[%clk 0:03:00]} 6. Bg5 {[%clk 0:03:02]}  e6 {[%clk 0:03:00]} 7. Bb5 {[%clk 0:03:02]}  Bd7 {[%clk 0:03:00]} 8. Bxc6 {[%clk 0:03:03]}  bxc6 {[%clk 0:03:00]} 9. Qf3 {[%clk 0:03:03]}  Qb6 {[%clk 0:02:49]} 10. O-O-O {[%clk 0:03:00]}  Rb8 {[%clk 0:02:45]} 11. Nb3 {[%clk 0:02:59]}  Be7 {[%clk 0:02:40]} 12. e5 {[%clk 0:02:58]}  dxe5 {[%clk 0:02:39]} 13. Bxf6 {[%clk 0:02:59]}  gxf6 {[%clk 0:02:39]} 14. Ne4 {[%clk 0:02:59]}  f5 {[%clk 0:02:33]} 15. Nd6+ {[%clk 0:02:59]}  Bxd6 {[%clk 0:01:48]} 16. Rxd6 {[%clk 0:02:59]}  Ke7 {[%clk 0:01:31]} 17. Rhd1 {[%clk 0:02:58]}  Rbd8 {[%clk 0:01:29]} 18. Qg3 {[%clk 0:02:37]}  h6 {[%clk 0:01:17]} 19. Qxe5 {[%clk 0:02:29]}  Bc8 {[%clk 0:01:13]} 20. Nd4 {[%clk 0:02:14]}  f6 {[%clk 0:00:57]} 21. Rxe6+ {[%clk 0:02:07]} 1-0


[Site "https://www.chess.com"]

[Event "Titled Tuesday Blitz August 1 Late 2023"]
[White "Pinheiro, Iung Alicio de O."]
[Black "Rozen, Eytan"]
[WhiteFideId "2104350"]
[BlackFideId "2816750"]
[WhiteElo "2628"]
[BlackElo "2774"]
[Result "1-0"]
[Round "8"]
[TimeControl "180+1"]
[Date "2023.08.01"]
[WhiteClock "0:01:01"]
[BlackClock "0:00:18"]
[Board "24"]

1. e4 {[%clk 0:03:00]}  c5 {[%clk 0:02:57]} 2. Nf3 {[%clk 0:02:59]}  e6 {[%clk 0:02:58]} 3. Nc3 {[%clk 0:02:54]}  Nc6 {[%clk 0:02:54]} 4. g3 {[%clk 0:02:53]}  d5 {[%clk 0:02:52]} 5. exd5 {[%clk 0:02:51]}  exd5 {[%clk 0:02:53]} 6. d4 {[%clk 0:02:51]}  Bg4 {[%clk 0:02:49]} 7. h3 {[%clk 0:02:08]}  Bxf3 {[%clk 0:02:37]} 8. Qxf3 {[%clk 0:02:07]}  Nxd4 {[%clk 0:02:27]} 9. Qd3 {[%clk 0:02:05]}  Nf6 {[%clk 0:02:24]} 10. Bg2 {[%clk 0:02:05]}  Be7 {[%clk 0:02:20]} 11. O-O {[%clk 0:02:02]}  O-O {[%clk 0:02:19]} 12. Bg5 {[%clk 0:02:02]}  Rc8 {[%clk 0:02:11]} 13. Rad1 {[%clk 0:01:58]}  Qa5 {[%clk 0:01:27]} 14. Bxf6 {[%clk 0:01:49]}  Bxf6 {[%clk 0:01:22]} 15. Nxd5 {[%clk 0:01:49]}  Rfd8 {[%clk 0:01:18]} 16. c3 {[%clk 0:01:47]}  Ne6 {[%clk 0:01:17]} 17. Qf5 {[%clk 0:01:28]}  Qxa2 {[%clk 0:01:11]} 18. Be4 {[%clk 0:01:22]}  Ng5 {[%clk 0:01:01]} 19. Bb1 {[%clk 0:01:08]}  Qc4 {[%clk 0:00:51]} 20. h4 {[%clk 0:01:05]}  Nf3+ {[%clk 0:00:18]} 21. Qxf3 {[%clk 0:01:01]} 1-0


[Site "https://www.chess.com"]

[Event "Titled Tuesday Blitz August 1 Late 2023"]
[White "Ozates, Tuna"]
[Black "Weetik, Vjacheslav"]
[WhiteFideId "6354521"]
[BlackFideId "4153472"]
[WhiteElo "2617"]
[BlackElo "2764"]
[Result "0-1"]
[Round "8"]
[TimeControl "180+1"]
[Date "2023.08.01"]
[WhiteClock "0:00:05"]
[BlackClock "0:00:06"]
[Board "26"]

1. e4 {[%clk 0:03:00]}  e5 {[%clk 0:03:00]} 2. Nf3 {[%clk 0:03:01]}  Nc6 {[%clk 0:03:00]} 3. Bb5 {[%clk 0:03:00]}  a6 {[%clk 0:03:00]} 4. Ba4 {[%clk 0:03:01]}  Nf6 {[%clk 0:03:01]} 5. d3 {[%clk 0:03:02]}  b5 {[%clk 0:03:01]} 6. Bb3 {[%clk 0:03:02]}  Bc5 {[%clk 0:03:02]} 7. c3 {[%clk 0:03:02]}  d6 {[%clk 0:03:00]} 8. Nbd2 {[%clk 0:03:01]}  O-O {[%clk 0:02:56]} 9. h3 {[%clk 0:03:00]}  Bb6 {[%clk 0:02:55]} 10. Nf1 {[%clk 0:03:00]}  Ne7 {[%clk 0:02:55]} 11. Ng3 {[%clk 0:03:00]}  Ng6 {[%clk 0:02:55]} 12. O-O {[%clk 0:03:00]}  c5 {[%clk 0:02:55]} 13. a4 {[%clk 0:02:59]}  Rb8 {[%clk 0:02:39]} 14. Be3 {[%clk 0:02:54]}  d5 {[%clk 0:02:26]} 15. axb5 {[%clk 0:02:45]}  axb5 {[%clk 0:02:26]} 16. Bg5 {[%clk 0:02:45]}  c4 {[%clk 0:02:26]} 17. Bc2 {[%clk 0:02:43]}  Bb7 {[%clk 0:02:08]} 18. exd5 {[%clk 0:02:07]}  Qxd5 {[%clk 0:01:10]} 19. Bxf6 {[%clk 0:02:03]}  gxf6 {[%clk 0:01:10]} 20. Nh5 {[%clk 0:01:52]}  Kh8 {[%clk 0:01:03]} 21. Qd2 {[%clk 0:01:39]}  Rg8 {[%clk 0:00:56]} 22. Qh6 {[%clk 0:01:09]}  Qxf3 {[%clk 0:00:15]} 23. gxf3 {[%clk 0:00:57]}  Nh4+ {[%clk 0:00:11]} 24. Ng3 {[%clk 0:00:51]}  Rxg3+ {[%clk 0:00:11]} 25. Kh2 {[%clk 0:00:48]}  Rg2+ {[%clk 0:00:10]} 26. Kh1 {[%clk 0:00:48]}  Bxf3 {[%clk 0:00:06]} 27. Qxf6+ {[%clk 0:00:48]}  Kg8 {[%clk 0:00:05]} 28. Rg1 {[%clk 0:00:35]}  Rg6+ {[%clk 0:00:05]} 29. Kh2 {[%clk 0:00:32]}  Bc7 {[%clk 0:00:04]} 30. Rxg6+ {[%clk 0:00:26]}  hxg6 {[%clk 0:00:04]} 31. Qxh4 {[%clk 0:00:25]}  cxd3 {[%clk 0:00:05]} 32. Bb3 {[%clk 0:00:20]}  e4+ {[%clk 0:00:05]} 33. Kg1 {[%clk 0:00:19]}  Kg7 {[%clk 0:00:03]} 34. Qe7 {[%clk 0:00:18]}  Rb7 {[%clk 0:00:02]} 35. Qxf7+ {[%clk 0:00:17]}  Kh6 {[%clk 0:00:03]} 36. Qf8+ {[%clk 0:00:14]}  Kg5 {[%clk 0:00:02]} 37. h4+ {[%clk 0:00:08]}  Kxh4 {[%clk 0:00:02]} 38. Qh6+ {[%clk 0:00:08]}  Bh5 {[%clk 0:00:02]} 39. Bd1 {[%clk 0:00:06]}  Rb6 {[%clk 0:00:02]} 40. Bxh5 {[%clk 0:00:03]}  gxh5 {[%clk 0:00:02]} 41. Qg7 {[%clk 0:00:04]}  Bf4 {[%clk 0:00:02]} 42. Kh1 {[%clk 0:00:04]}  d2 {[%clk 0:00:02]} 43. Rg1 {[%clk 0:00:04]}  Rd6 {[%clk 0:00:03]} 44. Qe7+ {[%clk 0:00:04]}  Kh3 {[%clk 0:00:03]} 45. Qg7 {[%clk 0:00:03]}  d1=Q {[%clk 0:00:02]} 46. Qg8 {[%clk 0:00:03]}  Qf3+ {[%clk 0:00:02]} 47. Qg2+ {[%clk 0:00:03]}  Qxg2+ {[%clk 0:00:02]} 48. Rxg2 {[%clk 0:00:04]}  Rd1+ {[%clk 0:00:03]} 49. Rg1 {[%clk 0:00:05]}  Rxg1+ {[%clk 0:00:03]} 50. Kxg1 {[%clk 0:00:06]}  Kg4 {[%clk 0:00:04]} 51. Kg2 {[%clk 0:00:07]}  Bc1 {[%clk 0:00:04]} 52. b3 {[%clk 0:00:06]}  Bd2 {[%clk 0:00:05]} 53. c4 {[%clk 0:00:07]}  bxc4 {[%clk 0:00:05]} 54. bxc4 {[%clk 0:00:08]}  Bb4 {[%clk 0:00:06]} 55. Kf1 {[%clk 0:00:08]}  Kf3 {[%clk 0:00:06]} 56. Kg1 {[%clk 0:00:08]}  Bc5 {[%clk 0:00:06]} 57. Kf1 {[%clk 0:00:07]}  h4 {[%clk 0:00:06]} 58. Kg1 {[%clk 0:00:07]}  Bxf2+ {[%clk 0:00:06]} 59. Kh2 {[%clk 0:00:08]}  e3 {[%clk 0:00:06]} 60. c5 {[%clk 0:00:05]}  e2 {[%clk 0:00:06]} 0-1


[Site "https://www.chess.com"]

[Event "Titled Tuesday Blitz August 1 Late 2023"]
[White "Tsaruk, Maksim"]
[Black "Vlassov, Nikolai"]
[WhiteFideId "13511173"]
[BlackFideId "4103360"]
[WhiteElo "2746"]
[BlackElo "2584"]
[Result "1-0"]
[Round "8"]
[TimeControl "180+1"]
[Date "2023.08.01"]
[WhiteClock "0:00:04"]
[BlackClock "0:00:01"]
[Board "27"]

1. e4 {[%clk 0:03:00]}  Nc6 {[%clk 0:02:59]} 2. Nf3 {[%clk 0:02:57]}  d5 {[%clk 0:02:58]} 3. exd5 {[%clk 0:02:57]}  Qxd5 {[%clk 0:02:59]} 4. Nc3 {[%clk 0:02:58]}  Qa5 {[%clk 0:02:58]} 5. d4 {[%clk 0:02:58]}  Bg4 {[%clk 0:02:58]} 6. d5 {[%clk 0:02:41]}  O-O-O {[%clk 0:02:57]} 7. Bd2 {[%clk 0:02:39]}  Nb4 {[%clk 0:02:56]} 8. Bc4 {[%clk 0:02:39]}  Bxf3 {[%clk 0:02:55]} 9. gxf3 {[%clk 0:02:37]}  Nf6 {[%clk 0:02:55]} 10. a3 {[%clk 0:02:35]}  Qc5 {[%clk 0:02:55]} 11. axb4 {[%clk 0:02:30]}  Qxc4 {[%clk 0:02:56]} 12. Rxa7 {[%clk 0:02:30]}  Nxd5 {[%clk 0:02:55]} 13. b3 {[%clk 0:01:55]}  Qc6 {[%clk 0:02:54]} 14. Ra8+ {[%clk 0:01:43]}  Kd7 {[%clk 0:02:54]} 15. Rxd8+ {[%clk 0:01:43]}  Kxd8 {[%clk 0:02:55]} 16. Ne4 {[%clk 0:01:44]}  Kc8 {[%clk 0:02:35]} 17. c4 {[%clk 0:01:42]}  Nf6 {[%clk 0:02:27]} 18. b5 {[%clk 0:01:40]}  Qe6 {[%clk 0:02:23]} 19. Qe2 {[%clk 0:01:16]}  Nxe4 {[%clk 0:02:06]} 20. fxe4 {[%clk 0:01:17]}  g5 {[%clk 0:01:44]} 21. Bc3 {[%clk 0:00:49]}  Rg8 {[%clk 0:01:39]} 22. O-O {[%clk 0:00:50]}  Bg7 {[%clk 0:01:07]} 23. Ra1 {[%clk 0:00:49]}  Kd7 {[%clk 0:00:26]} 24. Rd1+ {[%clk 0:00:48]}  Ke8 {[%clk 0:00:22]} 25. Qd3 {[%clk 0:00:40]}  Qc8 {[%clk 0:00:21]} 26. e5 {[%clk 0:00:31]}  f6 {[%clk 0:00:16]} 27. Kh1 {[%clk 0:00:11]}  Kf7 {[%clk 0:00:14]} 28. exf6 {[%clk 0:00:12]}  Bxf6 {[%clk 0:00:14]} 29. Qxh7+ {[%clk 0:00:12]}  Rg7 {[%clk 0:00:15]} 30. Qh5+ {[%clk 0:00:12]}  Rg6 {[%clk 0:00:12]} 31. Bxf6 {[%clk 0:00:07]}  exf6 {[%clk 0:00:12]} 32. Qh7+ {[%clk 0:00:04]}  Rg7 {[%clk 0:00:12]} 33. Qe4 {[%clk 0:00:05]}  Qe6 {[%clk 0:00:11]} 34. Qxb7 {[%clk 0:00:04]}  Kg6 {[%clk 0:00:12]} 35. Qd5 {[%clk 0:00:04]}  Qe2 {[%clk 0:00:11]} 36. Qd3+ {[%clk 0:00:05]}  Qxd3 {[%clk 0:00:11]} 37. Rxd3 {[%clk 0:00:05]}  Re7 {[%clk 0:00:11]} 38. Kg2 {[%clk 0:00:06]}  Kf5 {[%clk 0:00:11]} 39. h3 {[%clk 0:00:04]}  Re1 {[%clk 0:00:11]} 40. Kf3 {[%clk 0:00:05]}  Rb1 {[%clk 0:00:11]} 41. Ke3 {[%clk 0:00:04]}  Ke5 {[%clk 0:00:11]} 42. Kd2 {[%clk 0:00:04]}  f5 {[%clk 0:00:09]} 43. Kc3 {[%clk 0:00:04]}  Rf1 {[%clk 0:00:09]} 44. Re3+ {[%clk 0:00:03]}  Kf4 {[%clk 0:00:09]} 45. Re7 {[%clk 0:00:03]}  Rxf2 {[%clk 0:00:09]} 46. Rxc7 {[%clk 0:00:04]}  Rf3+ {[%clk 0:00:09]} 47. Kb4 {[%clk 0:00:05]}  Rxh3 {[%clk 0:00:09]} 48. b6 {[%clk 0:00:05]}  Rh8 {[%clk 0:00:07]} 49. b7 {[%clk 0:00:06]}  Rb8 {[%clk 0:00:07]} 50. c5 {[%clk 0:00:07]}  g4 {[%clk 0:00:07]} 51. c6 {[%clk 0:00:07]}  g3 {[%clk 0:00:08]} 52. Rc8 {[%clk 0:00:08]}  g2 {[%clk 0:00:08]} 53. Rxb8 {[%clk 0:00:06]}  g1=Q {[%clk 0:00:08]} 54. Rc8 {[%clk 0:00:03]}  Qb6+ {[%clk 0:00:08]} 55. Kc4 {[%clk 0:00:04]}  Qa6+ {[%clk 0:00:08]} 56. Kc5 {[%clk 0:00:04]}  Qa5+ {[%clk 0:00:08]} 57. Kd6 {[%clk 0:00:03]}  Qb4+ {[%clk 0:00:09]} 58. Kd7 {[%clk 0:00:04]}  Qd4+ {[%clk 0:00:09]} 59. Kc7 {[%clk 0:00:04]}  Qe5+ {[%clk 0:00:08]} 60. Kb6 {[%clk 0:00:05]}  Qd4+ {[%clk 0:00:08]} 61. Ka6 {[%clk 0:00:05]}  Qd3+ {[%clk 0:00:08]} 62. Ka5 {[%clk 0:00:06]}  Qd5+ {[%clk 0:00:05]} 63. Ka4 {[%clk 0:00:05]}  Qd4+ {[%clk 0:00:04]} 64. b4 {[%clk 0:00:05]}  Qd1+ {[%clk 0:00:03]} 65. Ka5 {[%clk 0:00:05]}  Qa1+ {[%clk 0:00:03]} 66. Kb5 {[%clk 0:00:04]}  Qe5+ {[%clk 0:00:03]} 67. Ka6 {[%clk 0:00:04]}  Qa1+ {[%clk 0:00:03]} 68. Kb6 {[%clk 0:00:04]}  Qd4+ {[%clk 0:00:03]} 69. Kc7 {[%clk 0:00:03]}  Qe5+ {[%clk 0:00:03]} 70. Kb6 {[%clk 0:00:03]}  Qd4+ {[%clk 0:00:03]} 71. Kb5 {[%clk 0:00:03]}  Qd3+ {[%clk 0:00:03]} 72. Ka5 {[%clk 0:00:02]}  Qa3+ {[%clk 0:00:03]} 73. Kb5 {[%clk 0:00:02]}  Qd3+ {[%clk 0:00:04]} 74. Ka4 {[%clk 0:00:02]}  Qc2+ {[%clk 0:00:04]} 75. Ka5 {[%clk 0:00:03]}  Qa2+ {[%clk 0:00:03]} 76. Kb6 {[%clk 0:00:03]}  Qf2+ {[%clk 0:00:03]} 77. Kc7 {[%clk 0:00:04]}  Qd4 {[%clk 0:00:03]} 78. b8=Q {[%clk 0:00:04]}  Qe5+ {[%clk 0:00:01]} 79. Kb7 {[%clk 0:00:04]} 1-0


[Site "https://www.chess.com"]

[Event "Titled Tuesday Blitz August 1 Late 2023"]
[White "Tikhonov, Viacheslav"]
[Black "only_strong_moves"]
[WhiteFideId "44196407"]
[WhiteElo "2549"]
[BlackElo "2719"]
[Result "0-1"]
[Round "8"]
[TimeControl "180+1"]
[Date "2023.08.01"]
[WhiteClock "0:00:09"]
[BlackClock "0:00:08"]
[Board "30"]

1. d4 {[%clk 0:03:00]}  d5 {[%clk 0:02:59]} 2. c4 {[%clk 0:03:01]}  e6 {[%clk 0:03:00]} 3. Nf3 {[%clk 0:03:02]}  a6 {[%clk 0:03:00]} 4. g3 {[%clk 0:03:02]}  Nf6 {[%clk 0:02:59]} 5. Bg2 {[%clk 0:03:03]}  Bb4+ {[%clk 0:02:57]} 6. Bd2 {[%clk 0:03:02]}  Be7 {[%clk 0:02:56]} 7. O-O {[%clk 0:03:01]}  O-O {[%clk 0:02:55]} 8. Qc2 {[%clk 0:02:54]}  dxc4 {[%clk 0:02:52]} 9. Qxc4 {[%clk 0:02:55]}  b5 {[%clk 0:02:49]} 10. Qc2 {[%clk 0:02:55]}  Bb7 {[%clk 0:02:49]} 11. Bf4 {[%clk 0:02:46]}  Nc6 {[%clk 0:02:37]} 12. Rd1 {[%clk 0:02:34]}  Nb4 {[%clk 0:02:38]} 13. Qc1 {[%clk 0:02:25]}  Rc8 {[%clk 0:02:23]} 14. Nbd2 {[%clk 0:02:13]}  c5 {[%clk 0:02:17]} 15. b3 {[%clk 0:01:49]}  cxd4 {[%clk 0:02:00]} 16. Qb2 {[%clk 0:01:49]}  Nc2 {[%clk 0:02:00]} 17. a4 {[%clk 0:01:36]}  Nxa1 {[%clk 0:01:59]} 18. Rxa1 {[%clk 0:01:37]}  Bb4 {[%clk 0:01:49]} 19. Rd1 {[%clk 0:01:25]}  Bc3 {[%clk 0:01:48]} 20. Qa2 {[%clk 0:01:23]}  h6 {[%clk 0:01:35]} 21. axb5 {[%clk 0:01:19]}  axb5 {[%clk 0:01:36]} 22. Qa7 {[%clk 0:01:19]}  Bd5 {[%clk 0:01:28]} 23. Be5 {[%clk 0:01:08]}  Ra8 {[%clk 0:01:23]} 24. Qc5 {[%clk 0:01:07]}  Nd7 {[%clk 0:01:07]} 25. Qxb5 {[%clk 0:01:07]}  Ra5 {[%clk 0:01:03]} 26. Qd3 {[%clk 0:01:01]}  Nxe5 {[%clk 0:01:01]} 27. Nxe5 {[%clk 0:00:59]}  Bxg2 {[%clk 0:01:02]} 28. Nec4 {[%clk 0:00:59]}  Bd5 {[%clk 0:00:49]} 29. Nxa5 {[%clk 0:00:58]}  Qxa5 {[%clk 0:00:49]} 30. Nc4 {[%clk 0:00:46]}  Qa2 {[%clk 0:00:45]} 31. Ne5 {[%clk 0:00:39]}  Bxb3 {[%clk 0:00:39]} 32. Rf1 {[%clk 0:00:35]}  Bc2 {[%clk 0:00:27]} 33. Qf3 {[%clk 0:00:28]}  Qd5 {[%clk 0:00:27]} 34. Qf4 {[%clk 0:00:23]}  d3 {[%clk 0:00:17]} 35. Nxd3 {[%clk 0:00:23]}  Bxd3 {[%clk 0:00:18]} 36. exd3 {[%clk 0:00:23]}  Qxd3 {[%clk 0:00:17]} 37. Qc7 {[%clk 0:00:20]}  Bf6 {[%clk 0:00:17]} 38. Qc6 {[%clk 0:00:20]}  Rb8 {[%clk 0:00:16]} 39. Kg2 {[%clk 0:00:17]}  Rb2 {[%clk 0:00:15]} 40. Qe8+ {[%clk 0:00:14]}  Kh7 {[%clk 0:00:15]} 41. Qxf7 {[%clk 0:00:15]}  Qd5+ {[%clk 0:00:13]} 42. Kg1 {[%clk 0:00:15]}  Bd4 {[%clk 0:00:11]} 43. Qf4 {[%clk 0:00:13]}  Qe5 {[%clk 0:00:09]} 44. Qf3 {[%clk 0:00:12]}  Qf5 {[%clk 0:00:09]} 45. Qg2 {[%clk 0:00:11]}  Re2 {[%clk 0:00:09]} 46. h3 {[%clk 0:00:11]}  e5 {[%clk 0:00:09]} 47. h4 {[%clk 0:00:10]}  e4 {[%clk 0:00:09]} 48. Kh1 {[%clk 0:00:10]}  Qf3 {[%clk 0:00:07]} 49. Kg1 {[%clk 0:00:05]}  Qxg2+ {[%clk 0:00:06]} 50. Kxg2 {[%clk 0:00:06]}  e3 {[%clk 0:00:07]} 51. Kf3 {[%clk 0:00:07]}  Rxf2+ {[%clk 0:00:07]} 52. Kg4 {[%clk 0:00:06]}  Rxf1 {[%clk 0:00:07]} 53. Kh5 {[%clk 0:00:07]}  Rf5+ {[%clk 0:00:07]} 54. Kg4 {[%clk 0:00:07]}  Rf8 {[%clk 0:00:08]} 55. Kh5 {[%clk 0:00:07]}  e2 {[%clk 0:00:08]} 56. g4 {[%clk 0:00:08]}  e1=Q {[%clk 0:00:08]} 57. g5 {[%clk 0:00:09]}  Qd1# {[%clk 0:00:08]} 0-1


[Site "https://www.chess.com"]

[Event "Titled Tuesday Blitz August 1 Late 2023"]
[White "Romero Pallares, Daniel"]
[Black "Volkov, Maksim"]
[WhiteFideId "32025637"]
[BlackFideId "54123070"]
[WhiteElo "2534"]
[BlackElo "2706"]
[Result "0-1"]
[Round "8"]
[TimeControl "180+1"]
[Date "2023.08.01"]
[WhiteClock "0:00:05"]
[BlackClock "0:01:33"]
[Board "31"]

1. d4 {[%clk 0:02:57]}  d5 {[%clk 0:02:58]} 2. Nc3 {[%clk 0:02:57]}  Nf6 {[%clk 0:02:58]} 3. Bf4 {[%clk 0:02:58]}  a6 {[%clk 0:02:59]} 4. e3 {[%clk 0:02:57]}  e6 {[%clk 0:02:59]} 5. Nf3 {[%clk 0:02:51]}  c5 {[%clk 0:02:59]} 6. dxc5 {[%clk 0:02:41]}  Bxc5 {[%clk 0:02:59]} 7. Bd3 {[%clk 0:02:42]}  Nc6 {[%clk 0:03:00]} 8. O-O {[%clk 0:02:35]}  h6 {[%clk 0:03:00]} 9. e4 {[%clk 0:02:31]}  O-O {[%clk 0:02:58]} 10. Re1 {[%clk 0:02:22]}  Ba7 {[%clk 0:02:57]} 11. e5 {[%clk 0:02:19]}  Nd7 {[%clk 0:02:41]} 12. a3 {[%clk 0:02:10]}  b5 {[%clk 0:02:29]} 13. h3 {[%clk 0:01:26]}  Rb8 {[%clk 0:02:27]} 14. g4 {[%clk 0:01:25]}  b4 {[%clk 0:02:26]} 15. axb4 {[%clk 0:01:26]}  Nxb4 {[%clk 0:02:26]} 16. Kg2 {[%clk 0:01:24]}  Nxd3 {[%clk 0:02:26]} 17. Qxd3 {[%clk 0:01:25]}  Rxb2 {[%clk 0:02:24]} 18. h4 {[%clk 0:01:18]}  Nc5 {[%clk 0:02:22]} 19. Qe2 {[%clk 0:01:13]}  Bb7 {[%clk 0:02:16]} 20. Kg3 {[%clk 0:01:06]}  Ne4+ {[%clk 0:02:06]} 21. Nxe4 {[%clk 0:01:06]}  dxe4 {[%clk 0:02:07]} 22. Nh2 {[%clk 0:00:48]}  Qc7 {[%clk 0:02:02]} 23. Rac1 {[%clk 0:00:41]}  Bd4 {[%clk 0:01:49]} 24. g5 {[%clk 0:00:39]}  Bxe5 {[%clk 0:01:49]} 25. Bxe5 {[%clk 0:00:33]}  Qxe5+ {[%clk 0:01:49]} 26. Kh3 {[%clk 0:00:34]}  hxg5 {[%clk 0:01:47]} 27. hxg5 {[%clk 0:00:35]}  Qxg5 {[%clk 0:01:47]} 28. Rg1 {[%clk 0:00:34]}  Qh6+ {[%clk 0:01:46]} 29. Kg3 {[%clk 0:00:33]}  f5 {[%clk 0:01:46]} 30. Kg2 {[%clk 0:00:21]}  f4 {[%clk 0:01:40]} 31. Kh1 {[%clk 0:00:20]}  Rb5 {[%clk 0:01:36]} 32. Rg4 {[%clk 0:00:14]}  Rh5 {[%clk 0:01:35]} 33. f3 {[%clk 0:00:12]}  exf3 {[%clk 0:01:35]} 34. Qf2 {[%clk 0:00:05]}  Rxh2+ {[%clk 0:01:33]} 0-1


[Site "https://www.chess.com"]

[Event "Titled Tuesday Blitz August 1 Late 2023"]
[White "Moral Garcia, Serafin"]
[Black "Rustemov, Alexander"]
[WhiteFideId "2201925"]
[BlackFideId "4119002"]
[WhiteElo "2538"]
[BlackElo "2829"]
[Result "0-1"]
[Round "8"]
[TimeControl "180+1"]
[Date "2023.08.01"]
[WhiteClock "0:00:16"]
[BlackClock "0:00:47"]
[Board "32"]

1. e4 {[%clk 0:03:00]}  e6 {[%clk 0:02:59]} 2. d4 {[%clk 0:03:00]}  d5 {[%clk 0:02:59]} 3. Nd2 {[%clk 0:03:01]}  dxe4 {[%clk 0:03:00]} 4. Nxe4 {[%clk 0:03:02]}  Bd7 {[%clk 0:03:01]} 5. Nf3 {[%clk 0:03:02]}  Bc6 {[%clk 0:03:01]} 6. Bd3 {[%clk 0:03:02]}  Nd7 {[%clk 0:03:02]} 7. O-O {[%clk 0:03:01]}  Ngf6 {[%clk 0:03:02]} 8. Ng3 {[%clk 0:03:01]}  Be7 {[%clk 0:03:03]} 9. Re1 {[%clk 0:02:58]}  O-O {[%clk 0:03:03]} 10. c3 {[%clk 0:02:57]}  b6 {[%clk 0:03:03]} 11. Bf4 {[%clk 0:02:54]}  Bb7 {[%clk 0:03:04]} 12. Bc2 {[%clk 0:02:53]}  c5 {[%clk 0:03:04]} 13. dxc5 {[%clk 0:02:52]}  Nxc5 {[%clk 0:02:58]} 14. Qe2 {[%clk 0:02:51]}  Re8 {[%clk 0:02:49]} 15. Rad1 {[%clk 0:02:50]}  Qc8 {[%clk 0:02:49]} 16. Ne5 {[%clk 0:02:46]}  Rd8 {[%clk 0:02:42]} 17. Rxd8+ {[%clk 0:02:41]}  Qxd8 {[%clk 0:02:42]} 18. Rd1 {[%clk 0:02:38]}  Qc8 {[%clk 0:02:31]} 19. b4 {[%clk 0:02:11]}  Na6 {[%clk 0:02:24]} 20. Qd3 {[%clk 0:01:59]}  g6 {[%clk 0:02:18]} 21. a3 {[%clk 0:01:56]}  Nd5 {[%clk 0:02:15]} 22. Bh6 {[%clk 0:01:46]}  Bf6 {[%clk 0:02:08]} 23. f4 {[%clk 0:01:35]}  Qxc3 {[%clk 0:01:50]} 24. Ne4 {[%clk 0:01:21]}  Qxd3 {[%clk 0:01:43]} 25. Bxd3 {[%clk 0:01:22]}  Be7 {[%clk 0:01:34]} 26. Bb5 {[%clk 0:01:18]}  Rc8 {[%clk 0:01:30]} 27. Nd7 {[%clk 0:01:09]}  Nac7 {[%clk 0:01:18]} 28. Be2 {[%clk 0:01:03]}  f6 {[%clk 0:01:16]} 29. g3 {[%clk 0:00:57]}  Kf7 {[%clk 0:01:17]} 30. Bf3 {[%clk 0:00:49]}  Ba8 {[%clk 0:00:53]} 31. g4 {[%clk 0:00:18]}  Ke8 {[%clk 0:00:48]} 32. Ndxf6+ {[%clk 0:00:16]}  Nxf6 {[%clk 0:00:47]} 0-1


[Site "https://www.chess.com"]